[Event "SS Manhem Chess Week GM and IM tournaments 2018"]
[Site "Molnlycke kulturhus, Biblioteksgatan 2, Molnlycke, Sweden"]
[Date "2018.08.12"]
[Round "2.6"]
[White "Vypkhaniuk, Ihor"]
[Black "Pantzar, Milton"]
[Result "1-0"]
[TimeControl "90 minutes for 40 moves + 30 minutes for the rest of the game + 30 seconds per move from move one."]
[WhiteTitle "FM"]
[BlackTitle "FM"]
[WhiteFideId "14112256"]
[BlackFideId "1721003"]
[WhiteElo "2357"]
[BlackElo "2306"]

1. Nf3 {[%clk 01:30:56]} {[%emt 00:00:02]} Nf6 {[%clk 01:30:42]} {[%emt
00:00:18]} 2. c4 {[%clk 01:31:20]} {[%emt 00:00:06]} e6 {[%clk 01:30:48]}
{[%emt 00:00:24]} 3. g3 {[%clk 01:31:46]} {[%emt 00:00:05]} d5 {[%clk
01:31:03]} {[%emt 00:00:15]} 4. Bg2 {[%clk 01:32:05]} {[%emt 00:00:11]} Be7
{[%clk 01:30:57]} {[%emt 00:00:36]} 5. O-O {[%clk 01:32:11]} {[%emt 00:00:24]}
O-O {[%clk 01:31:02]} {[%emt 00:00:26]} 6. b3 {[%clk 01:32:17]} {[%emt
00:00:24]} d4 {[%clk 01:30:15]} {[%emt 00:01:16]} 7. e3 {[%clk 01:31:48]}
{[%emt 00:00:59]} c5 {[%clk 01:30:04]} {[%emt 00:00:41]} 8. exd4 {[%clk
01:32:07]} {[%emt 00:00:11]} cxd4 {[%clk 01:30:28]} {[%emt 00:00:06]} 9. d3
{[%clk 01:32:08]} {[%emt 00:00:29]} Nc6 {[%clk 01:29:52]} {[%emt 00:01:06]} 10.
Re1 {[%clk 01:26:11]} {[%emt 00:06:27]} Nd7 {[%clk 01:23:25]} {[%emt 00:06:57]}
11. Ba3 {[%clk 01:06:45]} {[%emt 00:19:56]} Re8 {[%clk 01:10:19]} {[%emt
00:13:36]} 12. Bxe7 {[%clk 01:00:38]} {[%emt 00:06:36]} Rxe7 {[%clk 01:10:04]}
{[%emt 00:00:45]} 13. a3 {[%clk 00:52:29]} {[%emt 00:08:40]} a5 {[%clk
01:08:21]} {[%emt 00:02:13]} 14. Ng5 {[%clk 00:52:17]} {[%emt 00:00:41]} e5
{[%clk 00:57:19]} {[%emt 00:11:32]} 15. Nd2 {[%clk 00:42:34]} {[%emt 00:10:13]}
Nf6 {[%clk 00:31:15]} {[%emt 00:26:34]} 16. Nde4 {[%clk 00:41:52]} {[%emt
00:01:12]} Nxe4 {[%clk 00:31:30]} {[%emt 00:00:15]} 17. Bxe4 {[%clk 00:41:30]}
{[%emt 00:00:51]} g6 {[%clk 00:30:30]} {[%emt 00:01:31]} 18. Qd2 {[%clk
00:29:31]} {[%emt 00:12:29]} f6 {[%clk 00:28:31]} {[%emt 00:02:29]} 19. Bd5+
{[%clk 00:28:41]} {[%emt 00:01:20]} Kg7 {[%clk 00:28:49]} {[%emt 00:00:12]} 20.
Ne4 {[%clk 00:28:37]} {[%emt 00:00:35]} Re8 {[%clk 00:20:09]} {[%emt 00:09:11]}
21. h4 {[%clk 00:23:02]} {[%emt 00:06:04]} Bf5 {[%clk 00:16:31]} {[%emt
00:04:08]} 22. b4 {[%clk 00:19:47]} {[%emt 00:03:45]} axb4 {[%clk 00:14:21]}
{[%emt 00:02:40]} 23. axb4 {[%clk 00:19:21]} {[%emt 00:00:55]} Bxe4 {[%clk
00:06:00]} {[%emt 00:08:51]} 24. Bxe4 {[%clk 00:18:20]} {[%emt 00:01:30]} Qc7
{[%clk 00:04:52]} {[%emt 00:01:39]} 25. Bg2 {[%clk 00:15:51]} {[%emt 00:02:58]}
Ne7 {[%clk 00:03:56]} {[%emt 00:01:26]} 26. Qe2 {[%clk 00:13:43]} {[%emt
00:02:38]} Qb6 {[%clk 00:02:33]} {[%emt 00:01:53]} 27. b5 {[%clk 00:10:32]}
{[%emt 00:03:40]} Nf5 {[%clk 00:01:42]} {[%emt 00:01:21]} 28. Qf3 {[%clk
00:07:26]} {[%emt 00:03:36]} Rxa1 {[%clk 00:01:04]} {[%emt 00:01:09]} 29. Rxa1
{[%clk 00:07:49]} {[%emt 00:00:06]} e4 {[%clk 00:01:21]} {[%emt 00:00:13]} 30.
dxe4 {[%clk 00:06:52]} {[%emt 00:01:27]} Nd6 {[%clk 00:01:39]} {[%emt
00:00:13]} 31. Qd3 {[%clk 00:04:49]} {[%emt 00:02:33]} Rc8 {[%clk 00:01:57]}
{[%emt 00:00:12]} 32. Rc1 {[%clk 00:04:28]} {[%emt 00:00:50]} Qc5 {[%clk
00:01:56]} {[%emt 00:00:31]} 33. Rd1 {[%clk 00:04:20]} {[%emt 00:00:37]} Qxc4
{[%clk 00:02:04]} {[%emt 00:00:22]} 34. Qxd4 {[%clk 00:04:20]} {[%emt
00:00:30]} Qxd4 {[%clk 00:02:20]} {[%emt 00:00:14]} 35. Rxd4 {[%clk 00:04:47]}
{[%emt 00:00:02]} Nxb5 {[%clk 00:02:38]} {[%emt 00:00:13]} 36. Rd7+ {[%clk
00:04:57]} {[%emt 00:00:20]} Kg8 {[%clk 00:01:30]} {[%emt 00:01:37]} 37. Rxb7
{[%clk 00:04:15]} {[%emt 00:01:13]} Nd4 {[%clk 00:01:46]} {[%emt 00:00:14]} 38.
Rd7 {[%clk 00:03:33]} {[%emt 00:01:12]} Nc6 {[%clk 00:00:53]} {[%emt 00:01:23]}
39. Bh3 {[%clk 00:03:00]} {[%emt 00:01:03]} Ne5 {[%clk 00:00:46]} {[%emt
00:00:38]} 40. Be6+ {[%clk 00:02:56]} {[%emt 00:00:33]} Kf8 {[%clk 00:00:43]}
{[%emt 00:00:33]} 41. Rxh7 {[%clk 00:00:38]} {[%emt 00:02:48]} Rc6 {[%clk
00:29:26]} {[%emt 00:01:47]} 42. Bd5 {[%clk 00:28:07]} {[%emt 00:03:01]} Rc2
{[%clk 00:29:44]} {[%emt 00:00:12]} 43. Ra7 {[%clk 00:26:01]} {[%emt 00:02:35]}
Ng4 {[%clk 00:26:02]} {[%emt 00:04:13]} 44. Ra2 {[%clk 00:25:48]} {[%emt
00:00:43]} Rxa2 {[%clk 00:25:51]} {[%emt 00:00:42]} 45. Bxa2 {[%clk 00:26:14]}
{[%emt 00:00:03]} Ne5 {[%clk 00:26:15]} {[%emt 00:00:06]} 46. f4 {[%clk
00:23:09]} {[%emt 00:03:35]} Nc6 {[%clk 00:25:54]} {[%emt 00:00:51]} 47. Kf2
{[%clk 00:23:12]} {[%emt 00:00:27]} 1-0

[Event "SS Manhem Chess Week GM and IM tournaments 2018"]
[Site "Molnlycke kulturhus, Biblioteksgatan 2, Molnlycke, Sweden"]
[Date "2018.08.12"]
[Round "2.7"]
[White "Storme, Isak"]
[Black "Rydstrom, Tom"]
[Result "1/2-1/2"]
[TimeControl "90 minutes for 40 moves + 30 minutes for the rest of the game + 30 seconds per move from move one."]
[WhiteTitle "FM"]
[BlackTitle "FM"]
[WhiteFideId "1728113"]
[BlackFideId "1714830"]
[WhiteElo "2279"]
[BlackElo "2316"]

1. e4 {[%clk 01:30:57]} {[%emt 00:00:02]} e5 {[%clk 01:29:55]} {[%emt
00:01:06]} 2. Nf3 {[%clk 01:31:18]} {[%emt 00:00:08]} Nc6 {[%clk 01:30:10]}
{[%emt 00:00:16]} 3. Bb5 {[%clk 01:31:16]} {[%emt 00:00:32]} a6 {[%clk
01:30:37]} {[%emt 00:00:03]} 4. Ba4 {[%clk 01:31:35]} {[%emt 00:00:10]} Nf6
{[%clk 01:31:04]} {[%emt 00:00:03]} 5. O-O {[%clk 01:31:55]} {[%emt 00:00:10]}
Bc5 {[%clk 01:30:43]} {[%emt 00:00:47]} 6. c3 {[%clk 01:32:13]} {[%emt
00:00:17]} b5 {[%clk 01:31:10]} {[%emt 00:00:03]} 7. Bc2 {[%clk 01:32:36]}
{[%emt 00:00:07]} d5 {[%clk 01:28:57]} {[%emt 00:02:44]} 8. a4 {[%clk
01:32:00]} {[%emt 00:01:06]} Rb8 {[%clk 01:26:35]} {[%emt 00:02:49]} 9. axb5
{[%clk 01:28:01]} {[%emt 00:04:31]} axb5 {[%clk 01:27:01]} {[%emt 00:00:05]} 10.
exd5 {[%clk 01:10:32]} {[%emt 00:17:58]} Qxd5 {[%clk 01:27:26]} {[%emt
00:00:04]} 11. Bb3 {[%clk 01:04:12]} {[%emt 00:06:50]} Qd6 {[%clk 01:25:54]}
{[%emt 00:02:02]} 12. d4 {[%clk 00:54:05]} {[%emt 00:10:37]} exd4 {[%clk
01:26:20]} {[%emt 00:00:04]} 13. Re1+ {[%clk 00:54:30]} {[%emt 00:00:04]} Be6
{[%clk 01:26:29]} {[%emt 00:00:22]} 14. Bxe6 {[%clk 00:29:16]} {[%emt
00:25:44]} fxe6 {[%clk 01:26:53]} {[%emt 00:00:05]} 15. Ra6 {[%clk 00:25:19]}
{[%emt 00:04:28]} O-O {[%clk 01:14:02]} {[%emt 00:13:21]} 16. Qb3 {[%clk
00:21:20]} {[%emt 00:04:29]} Rbe8 {[%clk 01:09:16]} {[%emt 00:05:16]} 17. Qxb5
{[%clk 00:19:16]} {[%emt 00:02:34]} Bb6 {[%clk 01:09:28]} {[%emt 00:00:15]} 18.
cxd4 {[%clk 00:16:36]} {[%emt 00:03:14]} Ng4 {[%clk 00:59:47]} {[%emt
00:10:11]} 19. Qh5 {[%clk 00:15:27]} {[%emt 00:01:38]} Nxf2 {[%clk 00:35:05]}
{[%emt 00:25:13]} 20. Rxb6 {[%clk 00:12:53]} {[%emt 00:03:04]} cxb6 {[%clk
00:35:11]} {[%emt 00:00:25]} 21. Kxf2 {[%clk 00:13:17]} {[%emt 00:00:06]} Qxd4+
{[%clk 00:34:59]} {[%emt 00:00:42]} 22. Be3 {[%clk 00:13:15]} {[%emt 00:00:31]}
Qxb2+ {[%clk 00:35:06]} {[%emt 00:00:24]} 23. Nbd2 {[%clk 00:13:36]} {[%emt
00:00:08]} Qc2 {[%clk 00:09:35]} {[%emt 00:26:01]} 24. Kg1 {[%clk 00:13:24]}
{[%emt 00:00:42]} Qf5 {[%clk 00:09:34]} {[%emt 00:00:31]} 25. Qxf5 {[%clk
00:12:33]} {[%emt 00:01:21]} exf5 {[%clk 00:10:00]} {[%emt 00:00:05]} 26. Bxb6
{[%clk 00:12:49]} {[%emt 00:00:14]} Rxe1+ {[%clk 00:10:26]} {[%emt 00:00:04]}
27. Nxe1 {[%clk 00:13:11]} {[%emt 00:00:07]} Rb8 {[%clk 00:10:28]} {[%emt
00:00:29]} 28. Nc4 {[%clk 00:12:18]} {[%emt 00:01:24]} Ne5 {[%clk 00:09:01]}
{[%emt 00:01:57]} 29. Nxe5 {[%clk 00:11:33]} {[%emt 00:01:15]} Rxb6 {[%clk
00:09:30]} {[%emt 00:00:02]} 30. N1d3 {[%clk 00:10:34]} {[%emt 00:01:28]}
1/2-1/2

[Event "SS Manhem Chess Week GM and IM tournaments 2018"]
[Site "Molnlycke kulturhus, Biblioteksgatan 2, Molnlycke, Sweden"]
[Date "2018.08.12"]
[Round "2.8"]
[White "Nedilko, Vasily"]
[Black "Hobber, Anders"]
[Result "1/2-1/2"]
[TimeControl "90 minutes for 40 moves + 30 minutes for the rest of the game + 30 seconds per move from move one."]
[WhiteTitle "IM"]
[BlackTitle "FM"]
[WhiteFideId "14101459"]
[BlackFideId "1505424"]
[WhiteElo "2369"]
[BlackElo "2314"]

1. d4 {[%clk 01:30:56]} {[%emt 00:00:03]} d5 {[%clk 01:30:37]} {[%emt
00:00:23]} 2. c4 {[%clk 01:31:18]} {[%emt 00:00:09]} c6 {[%clk 01:30:27]}
{[%emt 00:00:39]} 3. Nf3 {[%clk 01:31:41]} {[%emt 00:00:08]} Nf6 {[%clk
01:30:34]} {[%emt 00:00:22]} 4. Nc3 {[%clk 01:32:05]} {[%emt 00:00:07]} Qb6
{[%clk 01:30:30]} {[%emt 00:00:34]} 5. Qc2 {[%clk 01:21:05]} {[%emt 00:11:30]}
Bg4 {[%clk 01:29:28]} {[%emt 00:01:32]} 6. c5 {[%clk 01:09:37]} {[%emt
00:11:58]} Qc7 {[%clk 01:15:53]} {[%emt 00:14:04]} 7. Ne5 {[%clk 01:02:59]}
{[%emt 00:07:09]} Be6 {[%clk 01:08:22]} {[%emt 00:08:01]} 8. Bf4 {[%clk
01:03:06]} {[%emt 00:00:23]} Qc8 {[%clk 00:56:44]} {[%emt 00:12:08]} 9. h3
{[%clk 00:50:49]} {[%emt 00:12:47]} g6 {[%clk 00:53:22]} {[%emt 00:03:52]} 10.
e3 {[%clk 00:50:52]} {[%emt 00:00:26]} Bf5 {[%clk 00:49:01]} {[%emt 00:04:51]}
11. Bd3 {[%clk 00:45:32]} {[%emt 00:05:51]} Bxd3 {[%clk 00:49:15]} {[%emt
00:00:16]} 12. Qxd3 {[%clk 00:46:00]} {[%emt 00:00:02]} Bg7 {[%clk 00:49:25]}
{[%emt 00:00:20]} 13. O-O {[%clk 00:46:23]} {[%emt 00:00:08]} O-O {[%clk
00:49:35]} {[%emt 00:00:19]} 14. b4 {[%clk 00:46:37]} {[%emt 00:00:17]} Nbd7
{[%clk 00:44:39]} {[%emt 00:05:25]} 15. Nf3 {[%clk 00:32:05]} {[%emt 00:15:02]}
Re8 {[%clk 00:36:57]} {[%emt 00:08:12]} 16. Bh2 {[%clk 00:32:25]} {[%emt
00:00:10]} b6 {[%clk 00:30:46]} {[%emt 00:06:41]} 17. Rfc1 {[%clk 00:29:04]}
{[%emt 00:03:51]} a5 {[%clk 00:27:02]} {[%emt 00:04:14]} 18. cxb6 {[%clk
00:22:51]} {[%emt 00:06:42]} axb4 {[%clk 00:24:24]} {[%emt 00:03:08]} 19. Nb5
{[%clk 00:23:02]} {[%emt 00:00:19]} Qa6 {[%clk 00:15:17]} {[%emt 00:09:37]} 20.
Rxc6 {[%clk 00:23:21]} {[%emt 00:00:12]} Rec8 {[%clk 00:10:11]} {[%emt
00:05:36]} 21. Qc2 {[%clk 00:17:33]} {[%emt 00:06:17]} Rxc6 {[%clk 00:07:23]}
{[%emt 00:03:19]} 22. Qxc6 {[%clk 00:18:01]} {[%emt 00:00:02]} Rc8 {[%clk
00:05:11]} {[%emt 00:02:41]} 23. Bc7 {[%clk 00:17:30]} {[%emt 00:01:01]} Qxb6
{[%clk 00:01:45]} {[%emt 00:03:56]} 24. Qxb6 {[%clk 00:16:05]} {[%emt
00:01:55]} Nxb6 {[%clk 00:02:10]} {[%emt 00:00:05]} 25. Bxb6 {[%clk 00:16:29]}
{[%emt 00:00:06]} Rb8 {[%clk 00:02:37]} {[%emt 00:00:03]} 26. Bc5 {[%clk
00:14:15]} {[%emt 00:02:44]} Rxb5 {[%clk 00:02:54]} {[%emt 00:00:13]} 27. Rb1
{[%clk 00:14:09]} {[%emt 00:00:35]} Bf8 {[%clk 00:01:56]} {[%emt 00:01:28]} 28.
Rxb4 {[%clk 00:14:24]} {[%emt 00:00:15]} Ra5 {[%clk 00:02:14]} {[%emt
00:00:12]} 29. Rb2 {[%clk 00:10:45]} {[%emt 00:04:09]} Ne4 {[%clk 00:01:59]}
{[%emt 00:00:45]} 30. Bb4 {[%clk 00:09:06]} {[%emt 00:02:09]} Ra4 {[%clk
00:01:57]} {[%emt 00:00:32]} 31. Ne5 {[%clk 00:07:17]} {[%emt 00:02:19]} e6
{[%clk 00:01:55]} {[%emt 00:00:32]} 32. Bxf8 {[%clk 00:03:58]} {[%emt
00:03:50]} Kxf8 {[%clk 00:02:23]} {[%emt 00:00:02]} 33. Rb8+ {[%clk 00:04:15]}
{[%emt 00:00:13]} Kg7 {[%clk 00:02:49]} {[%emt 00:00:04]} 34. Rb7 {[%clk
00:04:40]} {[%emt 00:00:06]} Rxa2 {[%clk 00:01:57]} {[%emt 00:01:22]} 35. Rxf7+
{[%clk 00:04:50]} {[%emt 00:00:19]} Kg8 {[%clk 00:02:02]} {[%emt 00:00:25]} 36.
g4 {[%clk 00:01:11]} {[%emt 00:04:08]} Ng5 {[%clk 00:01:55]} {[%emt 00:00:37]}
37. Rf6 {[%clk 00:00:47]} {[%emt 00:00:55]} Kg7 {[%clk 00:01:47]} {[%emt
00:00:38]} 38. h4 {[%clk 00:00:42]} {[%emt 00:00:34]} Nh3+ {[%clk 00:01:12]}
{[%emt 00:01:05]} 39. Kg2 {[%clk 00:01:12]} Kxf6 {[%clk 00:01:35]} {[%emt
00:00:08]} 40. Kxh3 {[%clk 00:01:39]} {[%emt 00:00:02]} Rxf2 {[%clk 00:01:56]}
{[%emt 00:00:08]} 41. Kg3 {[%clk 00:01:55]} {[%emt 00:00:15]} Re2 {[%clk
00:01:47]} {[%emt 00:00:37]} 42. Kf3 {[%clk 00:02:01]} {[%emt 00:00:26]} Re1
{[%clk 00:00:38]} {[%emt 00:01:39]} 43. Nd7+ {[%clk 00:00:56]} {[%emt
00:01:35]} Ke7 {[%clk 00:29:39]} {[%emt 00:01:28]} 44. Ne5 {[%clk 00:31:10]}
{[%emt 00:00:17]} Rf1+ {[%clk 00:29:23]} {[%emt 00:00:45]} 45. Kg3 {[%clk
00:31:31]} {[%emt 00:00:10]} Kf6 {[%clk 00:27:02]} {[%emt 00:02:50]} 46. Nd7+
{[%clk 00:31:47]} {[%emt 00:00:15]} Kg7 {[%clk 00:26:33]} {[%emt 00:00:59]} 47.
g5 {[%clk 00:29:00]} {[%emt 00:03:17]} Kf7 {[%clk 00:19:08]} {[%emt 00:07:54]}
48. Ne5+ {[%clk 00:29:16]} {[%emt 00:00:15]} Ke7 {[%clk 00:19:22]} {[%emt
00:00:15]} 49. Ng4 {[%clk 00:27:11]} {[%emt 00:02:36]} Kd6 {[%clk 00:14:24]}
{[%emt 00:05:27]} 50. Kg2 {[%clk 00:26:17]} {[%emt 00:01:25]} Rf5 {[%clk
00:11:00]} {[%emt 00:03:53]} 51. Nh6 {[%clk 00:26:35]} {[%emt 00:00:12]} Rf8
{[%clk 00:11:06]} {[%emt 00:00:24]} 52. Ng4 {[%clk 00:27:00]} {[%emt 00:00:06]}
Ke7 {[%clk 00:09:53]} {[%emt 00:01:43]} 53. Kg3 {[%clk 00:27:20]} {[%emt
00:00:10]} Rf5 {[%clk 00:08:42]} {[%emt 00:01:40]} 54. Nh6 {[%clk 00:27:36]}
{[%emt 00:00:14]} Rf1 {[%clk 00:09:00]} {[%emt 00:00:12]} 55. Ng4 {[%clk
00:27:57]} {[%emt 00:00:09]} Rf5 {[%clk 00:07:57]} {[%emt 00:01:33]} 56. Nh6
{[%emt 00:00:08]} Rf1 {[%emt 00:00:57]} 57. Ng4 Rf8 {[%emt 00:00:03]} 58. Ne5
{[%emt 00:00:29]} Rf1 {[%emt 00:00:21]} 59. Ng4 1/2-1/2

[Event "SS Manhem Chess Week GM and IM tournaments 2018"]
[Site "Molnlycke kulturhus, Biblioteksgatan 2, Molnlycke, Sweden"]
[Date "2018.08.12"]
[Round "2.9"]
[White "Mikalsen, Erlend"]
[Black "Kucuksari, Kaan"]
[Result "1-0"]
[TimeControl "90 minutes for 40 moves + 30 minutes for the rest of the game + 30 seconds per move from move one."]
[WhiteTitle "FM"]
[BlackTitle "FM"]
[WhiteFideId "1507338"]
[BlackFideId "6380166"]
[WhiteElo "2289"]
[BlackElo "2329"]

1. e4 {[%clk 01:30:57]} c5 {[%clk 01:30:56]} {[%emt 00:00:06]} 2. Nf3 {[%clk
01:31:20]} {[%emt 00:00:06]} e6 {[%clk 01:31:22]} {[%emt 00:00:05]} 3. d4
{[%clk 01:31:46]} {[%emt 00:00:04]} cxd4 {[%clk 01:31:47]} {[%emt 00:00:05]} 4.
Nxd4 {[%clk 01:32:11]} {[%emt 00:00:04]} a6 {[%clk 01:32:15]} {[%emt 00:00:04]}
5. Nc3 {[%clk 01:32:28]} {[%emt 00:00:12]} Qc7 {[%clk 01:32:37]} {[%emt
00:00:08]} 6. Be2 {[%clk 01:32:53]} {[%emt 00:00:04]} b5 {[%clk 01:33:00]}
{[%emt 00:00:08]} 7. O-O {[%clk 01:33:16]} {[%emt 00:00:06]} Bb7 {[%clk
01:33:22]} {[%emt 00:00:09]} 8. Re1 {[%clk 01:33:40]} {[%emt 00:00:05]} Nc6
{[%clk 01:33:44]} {[%emt 00:00:09]} 9. Nxc6 {[%clk 01:33:54]} {[%emt 00:00:16]}
dxc6 {[%clk 01:34:08]} {[%emt 00:00:06]} 10. e5 {[%clk 01:34:18]} {[%emt
00:00:05]} Rd8 {[%clk 01:34:30]} {[%emt 00:00:08]} 11. Bd3 {[%clk 01:34:42]}
{[%emt 00:00:05]} c5 {[%clk 01:34:56]} {[%emt 00:00:05]} 12. Qh5 {[%clk
01:26:37]} {[%emt 00:08:34]} g6 {[%clk 01:35:21]} {[%emt 00:00:06]} 13. Qh3
{[%clk 01:23:17]} {[%emt 00:03:49]} Bg7 {[%clk 01:35:48]} {[%emt 00:00:05]} 14.
Bg5 {[%clk 01:17:40]} {[%emt 00:06:06]} Rd7 {[%clk 01:31:59]} {[%emt 00:04:19]}
15. Be4 {[%clk 01:08:16]} {[%emt 00:09:53]} h6 {[%clk 01:27:33]} {[%emt
00:04:57]} 16. Bf4 {[%clk 01:02:16]} {[%emt 00:06:30]} Ne7 {[%clk 01:18:44]}
{[%emt 00:09:19]} 17. Bxb7 {[%clk 00:58:43]} {[%emt 00:04:03]} Qxb7 {[%clk
01:19:09]} {[%emt 00:00:06]} 18. Ne4 {[%clk 00:58:46]} {[%emt 00:00:26]} Qc6
{[%clk 01:19:24]} {[%emt 00:00:16]} 19. Nd6+ {[%clk 00:58:04]} {[%emt
00:01:12]} Kf8 {[%clk 01:19:40]} {[%emt 00:00:14]} 20. c4 {[%clk 00:53:26]}
{[%emt 00:05:08]} b4 {[%clk 01:12:07]} {[%emt 00:08:04]} 21. Qe3 {[%clk
00:48:05]} {[%emt 00:05:50]} g5 {[%clk 01:07:49]} {[%emt 00:04:49]} 22. Bg3
{[%clk 00:48:30]} {[%emt 00:00:04]} Ng6 {[%clk 01:08:05]} {[%emt 00:00:14]} 23.
a3 {[%clk 00:47:01]} {[%emt 00:02:00]} h5 {[%clk 01:04:47]} {[%emt 00:03:47]}
24. h3 {[%clk 00:46:42]} {[%emt 00:00:48]} h4 {[%clk 00:57:15]} {[%emt
00:08:03]} 25. Bh2 {[%clk 00:47:08]} {[%emt 00:00:03]} g4 {[%clk 00:53:13]}
{[%emt 00:04:32]} 26. hxg4 {[%clk 00:46:17]} {[%emt 00:01:19]} h3 {[%clk
00:53:37]} {[%emt 00:00:07]} 27. Qf3 {[%clk 00:44:49]} {[%emt 00:01:58]} Qxf3
{[%clk 00:45:41]} {[%emt 00:08:26]} 28. gxf3 {[%clk 00:44:55]} {[%emt
00:00:23]} b3 {[%clk 00:44:50]} {[%emt 00:01:23]} 29. Rad1 {[%clk 00:43:49]}
{[%emt 00:01:35]} Ke7 {[%clk 00:45:05]} {[%emt 00:00:15]} 30. f4 {[%clk
00:43:32]} {[%emt 00:00:47]} a5 {[%clk 00:43:57]} {[%emt 00:01:38]} 31. Ne4
{[%clk 00:39:50]} {[%emt 00:04:11]} Rxd1 {[%clk 00:36:12]} {[%emt 00:08:16]} 32.
Rxd1 {[%clk 00:40:16]} {[%emt 00:00:03]} Nh4 {[%clk 00:36:31]} {[%emt
00:00:11]} 33. Rd3 {[%clk 00:39:08]} {[%emt 00:01:38]} Rd8 {[%clk 00:36:51]}
{[%emt 00:00:10]} 34. Nd6 {[%clk 00:38:52]} {[%emt 00:00:46]} a4 {[%clk
00:36:19]} {[%emt 00:01:02]} 35. Rxh3 {[%clk 00:38:36]} {[%emt 00:00:46]} Rxd6
{[%clk 00:12:24]} {[%emt 00:24:26]} 36. exd6+ {[%clk 00:38:57]} {[%emt
00:00:09]} Ke8 {[%clk 00:11:00]} {[%emt 00:01:54]} 37. Rxh4 {[%clk 00:35:55]}
{[%emt 00:03:32]} Bxb2 {[%clk 00:11:22]} {[%emt 00:00:09]} 38. Rh3 {[%clk
00:24:43]} {[%emt 00:11:41]} Bxa3 {[%clk 00:10:44]} {[%emt 00:01:09]} 39. Rd3
{[%clk 00:24:38]} {[%emt 00:00:35]} Kd7 {[%clk 00:11:06]} {[%emt 00:00:09]} 40.
f5 {[%clk 00:24:51]} {[%emt 00:00:17]} b2 {[%clk 00:00:32]} {[%emt 00:11:03]}
41. fxe6+ {[%clk 00:24:19]} {[%emt 00:01:03]} fxe6 {[%clk 00:27:25]} {[%emt
00:03:37]} 42. Rd1 {[%clk 00:54:39]} {[%emt 00:00:10]} Bb4 {[%clk 00:27:47]}
{[%emt 00:00:09]} 43. Be5 {[%clk 00:54:57]} {[%emt 00:00:11]} a3 {[%clk
00:28:12]} {[%emt 00:00:05]} 44. g5 {[%clk 00:54:17]} {[%emt 00:01:10]} Bd2
{[%clk 00:25:35]} {[%emt 00:03:08]} 45. g6 {[%clk 00:54:43]} {[%emt 00:00:05]}
Bf4 {[%clk 00:25:46]} {[%emt 00:00:18]} 46. g7 {[%clk 00:53:31]} {[%emt
00:01:42]} Bxe5 {[%clk 00:26:10]} {[%emt 00:00:06]} 47. g8=Q {[%clk 00:53:55]}
{[%emt 00:00:04]} Bd4 {[%clk 00:26:18]} {[%emt 00:00:24]} 48. Qb8 {[%clk
00:54:06]} {[%emt 00:00:19]} 1-0